fUSD/lending_fUSD_20250923
["ID","MTS","AMOUNT","RATE_DAILY","PERIOD"]
[387265765,1758669042931,-400.0,0.00024657,3]
[387265767,1758669042942,-400.0,0.00024657,3]
[387265769,1758669042951,-400.0,0.00024657,3]
[387265771,1758669042961,-719.37,0.00024657,3]
[387265773,1758669042970,-400.0,0.00024657,3]
[387265775,1758669042981,-400.0,0.00024657,3]
[387265777,1758669042990,-400.0,0.00024657,3]
[387265779,1758669043000,-400.0,0.00024657,3]
[387265781,1758669043010,-400.0,0.00024657,3]
[387265783,1758669043020,-400.0,0.00024657,3]
[387265785,1758669043030,-400.0,0.00024657,3]
[387265787,1758669043040,-998.8,0.00024657,3]
[387265790,1758669043057,-166.578773,0.00024657,3]
[387265792,1758669043067,-174.717895,0.00024657,3]
[387265794,1758669043076,-400.0,0.00024657,3]
[387265796,1758669043086,-181.749417,0.00024657,3]
[387265798,1758669043101,-150.06902,0.00024657,3]
[387265800,1758669043112,-400.0,0.00024657,3]
[387265802,1758669043122,-167.265376,0.00024657,3]
[387265806,1758669043131,-400.0,0.00024657,3]
[387265809,1758669043142,-158.412683,0.00024657,3]
[387265811,1758669043151,-400.0,0.00024657,3]
[387265814,1758669043161,-434.16,0.00024657,3]
[387265818,1758669043171,-400.0,0.00024657,3]
[387265821,1758669043180,-400.0,0.00024657,3]
[387265824,1758669043190,-512.3,0.00024657,3]
[387265827,1758669043199,-400.0,0.00024657,3]
[387265830,1758669043209,-400.0,0.00024657,3]
[387265832,1758669043219,-459.08,0.00024657,3]
[387265833,1758669043228,-400.0,0.00024657,3]
[387265834,1758669043238,-523.14,0.00024657,3]
[387265835,1758669043247,-412.87116842,0.00024657,3]
[387265836,1758669043257,-400.0,0.00024657,3]
[387265837,1758669043266,-595.3,0.00024657,3]
[387265838,1758669043275,-400.0,0.00024657,3]
[387265839,1758669043285,-400.0,0.00024657,3]
[387265840,1758669043294,-400.0,0.00024657,3]
[387265842,1758669043304,-400.0,0.00024657,3]
[387265844,1758669043315,-400.0,0.00024657,3]
[387265846,1758669043325,-400.0,0.00024657,3]
[387265848,1758669043335,-400.0,0.00024657,3]
[387265850,1758669043345,-400.0,0.00024657,3]
[387265852,1758669043355,-400.0,0.00024657,3]
[387265854,1758669043364,-565.03,0.00024657,3]
[387265856,1758669043374,-972.8,0.00024657,3]
[387265859,1758669043383,-400.0,0.00024657,3]
[387265861,1758669043392,-400.0,0.00024657,3]
[387265863,1758669043402,-400.0,0.00024657,3]
[387265865,1758669043412,-553.55,0.00024657,3]
[387265867,1758669043422,-1403.67,0.00024657,3]
[387265869,1758669043434,-684.03,0.00024657,3]
[387265871,1758669043448,-1612.3,0.00024657,3]
[387265873,1758669043459,-400.0,0.00024657,3]
[387265875,1758669043470,-400.0,0.00024657,3]
[387265877,1758669043479,-400.0,0.00024657,3]
[387265879,1758669043489,-400.0,0.00024657,3]
[387265881,1758669043499,-581.15,0.00024657,3]
[387265883,1758669043508,-400.0,0.00024657,3]
[387265885,1758669043517,-627.23,0.00024657,3]
[387265887,1758669043527,-400.0,0.00024657,3]
[387265889,1758669043536,-400.0,0.00024657,3]
[387265891,1758669043546,-400.0,0.00024657,3]
[387265893,1758669043556,-574.83,0.00024657,3]
[387265895,1758669043566,-400.0,0.00024657,3]
[387265897,1758669043575,-400.0,0.00024657,3]
[387265899,1758669043584,-400.0,0.00024657,3]
[387265901,1758669043594,-400.0,0.00024657,3]
[387265903,1758669043603,-400.0,0.00024657,3]
[387265905,1758669043613,-676.41,0.00024657,3]
[387265907,1758669043622,-400.0,0.00024657,3]
[387265910,1758669043632,-400.0,0.00024657,3]
[387265912,1758669043641,-400.0,0.00024657,3]
[387265914,1758669043651,-400.0,0.00024657,3]
[387265916,1758669043661,-400.0,0.00024657,3]
[387265918,1758669043670,-480.91,0.00024657,3]
[387265920,1758669043680,-400.0,0.00024657,3]
[387265922,1758669043689,-263.05056,0.00024657,3]
[387265924,1758669043699,-400.0,0.00024657,3]
[387265926,1758669043709,-400.0,0.00024657,3]
[387265928,1758669043718,-400.0,0.00024657,3]
[387265930,1758669043728,-400.0,0.00024657,3]
[387265932,1758669043737,-400.0,0.00024657,3]
[387265934,1758669043747,-400.0,0.00024657,3]
[387265936,1758669043756,-400.0,0.00024657,3]
[387265938,1758669043766,-400.0,0.00024657,3]
[387265940,1758669043776,-400.0,0.00024657,3]
[387265942,1758669043786,-400.0,0.00024657,3]
[387265944,1758669043795,-562.45,0.00024657,3]
[387265947,1758669043805,-400.0,0.00024657,3]
[387265950,1758669043815,-720.11,0.00024657,3]
[387265953,1758669043825,-400.0,0.00024657,3]
[387265956,1758669043835,-400.0,0.00024657,3]
[387265959,1758669043845,-400.0,0.00024657,3]
[387265962,1758669043855,-400.0,0.00024657,3]
[387265965,1758669043864,-400.0,0.00024657,3]
[387265967,1758669043874,-400.0,0.00024657,3]
[387265969,1758669043884,-400.0,0.00024657,3]
[387265971,1758669043894,-400.0,0.00024657,3]
[387265973,1758669043903,-503.80857999,0.00024657,3]
[387265975,1758669043913,-410.21518176,0.00024657,3]
[387265977,1758669043923,-400.0,0.00024657,3]
[387265979,1758669043938,-617.84,0.00024657,3]
[387265981,1758669043947,-400.0,0.00024657,3]
[387265983,1758669043957,-400.0,0.00024657,3]
[387265985,1758669043966,-157.77434801,0.00024657,3]
[387265987,1758669043976,-400.0,0.00024657,3]
[387265989,1758669043986,-400.0,0.00024657,3]
[387265991,1758669043995,-764.03,0.00024657,3]
[387265993,1758669044005,-400.0,0.00024657,3]
[387265995,1758669044014,-504.9,0.00024657,3]
[387265997,1758669044024,-400.0,0.00024657,3]
[387265999,1758669044033,-400.0,0.00024657,3]
[387266001,1758669044042,-400.0,0.00024657,3]
[387266003,1758669044052,-400.0,0.00024657,3]
[387266005,1758669044061,-400.0,0.00024657,3]
[387266007,1758669044071,-400.0,0.00024657,3]
[387266009,1758669044080,-400.0,0.00024657,3]
[387266011,1758669044090,-400.0,0.00024657,3]
[387266013,1758669044100,-431.99296256,0.00024657,3]
[387266015,1758669044109,-400.0,0.00024657,3]
[387266017,1758669044119,-400.0,0.00024657,3]
[387266019,1758669044128,-400.0,0.00024657,3]
[387266021,1758669044137,-400.0,0.00024657,3]
[387266023,1758669044147,-400.0,0.00024657,3]
[387266026,1758669044157,-400.0,0.00024657,3]
[387266028,1758669044166,-400.0,0.00024657,3]
[387266030,1758669044176,-1162.86,0.00024657,3]
[387266032,1758669044185,-400.0,0.00024657,3]
[387266034,1758669044195,-512.98731904,0.00024657,3]
[387266036,1758669044205,-400.0,0.00024657,3]
[387266037,1758669044214,-400.0,0.00024657,3]
[387266040,1758669044224,-1499.27,0.00024657,3]
[387266042,1758669044234,-545.11,0.00024657,3]
[387266043,1758669044244,-400.0,0.00024657,3]
[387266045,1758669044254,-716.26,0.00024657,3]
[387266047,1758669044264,-400.0,0.00024657,3]
[387266049,1758669044273,-400.0,0.00024657,3]
[387266051,1758669044283,-401.86,0.00024657,3]
[387266053,1758669044292,-400.0,0.00024657,3]
[387266055,1758669044301,-400.0,0.00024657,3]
[387266057,1758669044311,-400.0,0.00024657,3]
[387266059,1758669044320,-443.24489428,0.00024657,3]
[387266061,1758669044330,-400.0,0.00024657,3]
[387266063,1758669044340,-400.0,0.00024657,3]
[387266065,1758669044349,-400.0,0.00024657,2]
[387266067,1758669044358,-400.0,0.00024657,3]
[387266069,1758669044367,-400.0,0.00024657,3]
[387266071,1758669044376,-400.0,0.00024657,3]
[387266073,1758669044386,-400.0,0.00024657,3]
[387266075,1758669044396,-400.0,0.00024657,3]
[387266078,1758669044406,-1501.17,0.00024657,3]
[387266080,1758669044415,-400.0,0.00024657,3]
[387266082,1758669044425,-1491.56,0.00024657,3]
[387266084,1758669044435,-400.0,0.00024657,3]
[387266086,1758669044444,-400.0,0.00024657,3]
[387266088,1758669044453,-400.0,0.00024657,3]
[387266090,1758669044463,-1028.55,0.00024657,3]
[387266092,1758669044473,-400.0,0.00024657,3]
[387266094,1758669044482,-400.0,0.00024657,3]
[387266096,1758669044491,-400.0,0.00024657,3]
[387266098,1758669044501,-400.0,0.00024657,3]
[387266099,1758669044510,-400.0,0.00024657,3]
[387266102,1758669044520,-400.0,0.00024657,3]
[387266104,1758669044529,-400.0,0.00024657,3]
[387266106,1758669044539,-400.0,0.00024657,3]
[387266108,1758669044548,-400.0,0.00024657,3]
[387266110,1758669044557,-400.0,0.00024657,3]
[387266112,1758669044566,-400.0,0.00024657,3]
[387266124,1758669044677,-400.0,0.00024657,3]
[387266126,1758669044686,-674.57,0.00024657,3]
[387266128,1758669044696,-400.0,0.00024657,3]
[387266130,1758669044705,-400.0,0.00024657,3]
[387266132,1758669044714,-400.0,0.00024657,3]
[387266134,1758669044723,-400.0,0.00024657,3]
[387266136,1758669044732,-400.0,0.00024657,3]
[387266138,1758669044741,-400.0,0.00024657,3]
[387266140,1758669044752,-400.0,0.00024657,3]
[387266142,1758669044761,-400.0,0.00024657,3]
[387266144,1758669044771,-400.0,0.00024657,3]
[387266146,1758669044780,-400.23452165,0.00024657,3]
[387266148,1758669044790,-400.0,0.00024657,3]
[387266150,1758669044800,-400.0,0.00024657,3]
[387266152,1758669044809,-403.43,0.00024657,3]
[387266154,1758669044819,-400.0,0.00024657,3]
[387266156,1758669044829,-540.58,0.00024657,3]
[387266158,1758669044840,-568.69,0.00024657,3]
[387266160,1758669044849,-400.0,0.00024657,3]
[387266162,1758669044859,-400.0,0.00024657,3]
[387266164,1758669044868,-400.0,0.00024657,3]
[387266166,1758669044878,-400.0,0.00024657,3]
[387266169,1758669044887,-647.39,0.00024657,3]
[387266171,1758669044897,-400.0,0.00024657,3]
[387266173,1758669044906,-1025.73,0.00024657,3]
[387266175,1758669044915,-400.0,0.00024657,3]
[387266177,1758669044924,-1481.07,0.00024657,3]
[387266178,1758669044937,-400.0,0.00024657,3]
[387266180,1758669044946,-400.0,0.00024657,3]
[387266183,1758669044955,-500.0,0.00024657,3]
[387266185,1758669044965,-593.2,0.00024657,3]
[387266187,1758669044975,-500.0,0.00024657,3]
[387266189,1758669044984,-400.0,0.00024657,3]
[387266191,1758669044994,-500.0,0.00024657,3]
[387266193,1758669045004,-500.0,0.00024657,3]
[387266195,1758669045014,-500.0,0.00024657,3]
[387266197,1758669045024,-500.0,0.00024657,3]
[387266199,1758669045033,-500.0,0.00024657,3]
[387266201,1758669045043,-500.0,0.00024657,3]
[387266203,1758669045053,-500.0,0.00024657,3]
[387266205,1758669045063,-500.0,0.00024657,3]
[387266207,1758669045072,-500.0,0.00024657,3]
[387266209,1758669045081,-400.0,0.00024657,3]
[387266211,1758669045091,-400.0,0.00024657,3]
[387266213,1758669045100,-500.0,0.00024657,3]
[387266215,1758669045110,-500.0,0.00024657,3]
[387266217,1758669045119,-500.0,0.00024657,3]
[387266219,1758669045128,-634.31,0.00024657,3]
[387266221,1758669045137,-500.0,0.00024657,3]
[387266223,1758669045146,-500.0,0.00024657,3]
[387266225,1758669045155,-500.0,0.00024657,3]
[387266227,1758669045164,-188.93830627,0.00024657,3]
[387266229,1758669045174,-400.0,0.00024657,3]
[387266231,1758669045183,-400.0,0.00024657,3]
[387266233,1758669045192,-400.0,0.00024657,3]
[387266235,1758669045201,-400.0,0.00024657,3]
[387266236,1758669045210,-573.48,0.00024657,3]
[387266238,1758669045220,-400.0,0.00024657,3]
[387266240,1758669045229,-400.0,0.00024657,3]
[387266243,1758669045239,-400.0,0.00024657,3]
[387266244,1758669045248,-400.75982837,0.00024657,3]
[387266247,1758669045257,-400.0,0.00024657,3]
[387266249,1758669045267,-402.28759649,0.00024657,3]
[387266250,1758669045276,-767.6,0.00024657,3]
[387266252,1758669045286,-400.0,0.00024657,3]
[387266253,1758669045295,-400.0,0.00024657,3]
[387266254,1758669045304,-400.0,0.00024657,3]
[387266255,1758669045313,-844.3,0.00024657,3]
[387266256,1758669045322,-400.0,0.00024657,3]
[387266257,1758669045331,-400.0,0.00024657,3]
[387266258,1758669045341,-400.0,0.00024657,3]
[387266259,1758669045350,-400.0,0.00024657,3]
[387266261,1758669045360,-400.0,0.00024657,3]
[387266262,1758669045369,-400.0,0.00024657,3]
[387266264,1758669045378,-400.0,0.00024657,3]
[387266266,1758669045387,-1148.29,0.00024657,3]
[387266268,1758669045397,-400.0,0.00024657,3]
[387266270,1758669045406,-400.0,0.00024657,3]
[387266272,1758669045415,-400.0,0.00024657,3]
[387266274,1758669045431,-400.0,0.00024657,3]
[387266276,1758669045441,-400.0,0.00024657,3]
[387266278,1758669045451,-400.0,0.00024657,2]
[387266280,1758669045463,-400.0,0.00024657,3]
[387266282,1758669045474,-849.99,0.00024657,3]
[387266284,1758669045488,-497.28,0.00024657,3]
[387266286,1758669045505,-400.0,0.00024657,3]
[387266288,1758669045514,-400.0,0.00024657,3]
[387266290,1758669045524,-699.64,0.00024657,3]
[387266292,1758669045533,-400.0,0.00024657,3]
[387266294,1758669045543,-400.0,0.00024657,3]
[387266296,1758669045552,-400.0,0.00024657,3]
[387266298,1758669045562,-1692.34,0.00024657,3]
[387266300,1758669045571,-594.23,0.00024657,3]
[387266302,1758669045580,-1194.73,0.00024657,3]
[387266304,1758669045591,-597.09,0.00024657,3]
[387266306,1758669045600,-499.46866033,0.00024657,3]
[387266308,1758669045609,-2477.37,0.00024657,3]
[387266310,1758669045619,-400.0,0.00024657,3]
[387266313,1758669045628,-517.68,0.00024657,3]
[387266315,1758669045637,-400.0,0.00024657,3]
[387266317,1758669045647,-400.0,0.00024657,3]
[387266319,1758669045656,-400.0,0.00024657,3]
[387266321,1758669045666,-400.0,0.00024657,3]
[387266323,1758669045675,-443.82,0.00024657,3]
[387266325,1758669045684,-400.0,0.00024657,3]
[387266327,1758669045694,-400.0,0.00024657,3]
[387266329,1758669045703,-400.0,0.00024657,3]
[387266331,1758669045712,-400.0,0.00024657,3]
[387266333,1758669045721,-400.0,0.00024657,3]
[387266335,1758669045731,-400.0,0.00024657,3]
[387266337,1758669045740,-600.11,0.00024657,3]
[387266339,1758669045750,-652.48,0.00024657,3]
[387266340,1758669045759,-470.75,0.00024657,3]
[387266343,1758669045769,-400.0,0.00024657,3]
[387266344,1758669045778,-408.4359744,0.00024657,3]
[387266346,1758669045787,-400.0,0.00024657,3]
[387266348,1758669045797,-400.0,0.00024657,3]
[387266350,1758669045806,-400.0,0.00024657,3]
[387266353,1758669045816,-2489.0,0.00024657,3]
[387266355,1758669045825,-400.0,0.00024657,3]
[387266356,1758669045835,-1221.18,0.00024657,3]
[387266358,1758669045845,-400.0,0.00024657,3]
[387266361,1758669045854,-1056.58,0.00024657,3]
[387266363,1758669045864,-400.0,0.00024657,3]
[387266365,1758669045873,-150.0,0.00024657,3]
[387266367,1758669045883,-565.13,0.00024657,3]
[387266369,1758669045892,-400.26,0.00024657,3]
[387266371,1758669045901,-150.0,0.00024657,3]
[387266373,1758669045911,-400.0,0.00024657,3]
[387266375,1758669045920,-400.0,0.00024657,3]
[387266377,1758669045931,-200.0,0.00024657,3]
[387266379,1758669045942,-150.0,0.00024657,3]
[387266381,1758669045951,-400.0,0.00024657,3]
[387266382,1758669045961,-500.0,0.00024657,3]
[387266385,1758669045971,-400.0,0.00024657,3]
[387266386,1758669045980,-1377.11,0.00024657,3]
[387266389,1758669045990,-150.0,0.00024657,3]
[387266391,1758669045999,-400.0,0.00024657,3]
[387266393,1758669046009,-1206.7,0.00024657,3]
[387266394,1758669046019,-150.0,0.00024657,3]
[387266397,1758669046028,-150.0,0.00024657,3]
[387266399,1758669046038,-400.0,0.00024657,3]
[387266401,1758669046047,-400.0,0.00024657,3]
[387266402,1758669046056,-400.0,0.00024657,3]
[387266404,1758669046066,-1546.78,0.00024657,3]
[387266407,1758669046076,-572.06,0.00024657,3]
[387266409,1758669046086,-400.0,0.00024657,3]
[387266411,1758669046095,-400.0,0.00024657,3]
[387266413,1758669046104,-400.0,0.00024657,3]
[387266415,1758669046113,-400.0,0.00024657,3]
[387266417,1758669046123,-400.0,0.00024657,3]
[387266419,1758669046132,-400.0,0.00024657,3]
[387266421,1758669046141,-1740.3,0.00024657,3]
[387266423,1758669046150,-400.0,0.00024657,3]
[387266425,1758669046160,-400.0,0.00024657,3]
[387266427,1758669046170,-400.0,0.00024657,3]
[387266429,1758669046179,-400.0,0.00024657,3]
[387266431,1758669046188,-1163.27,0.00024657,3]
[387266433,1758669046197,-400.0,0.00024657,3]
[387266434,1758669046207,-400.0,0.00024657,3]
[387266436,1758669046216,-400.0,0.00024657,3]
[387266438,1758669046226,-400.0,0.00024657,3]
[387266441,1758669046235,-419.45,0.00024657,3]
[387266443,1758669046244,-400.0,0.00024657,3]
[387266445,1758669046254,-400.0,0.00024657,3]
[387266447,1758669046263,-400.0,0.00024657,3]
[387266449,1758669046272,-817.14,0.00024657,3]
[387266451,1758669046282,-604.32,0.00024657,3]
[387266453,1758669046293,-1520.6,0.00024657,3]
[387266455,1758669046303,-400.0,0.00024657,3]
[387266457,1758669046313,-400.0,0.00024657,3]
[387266459,1758669046322,-400.0,0.00024657,3]
[387266461,1758669046331,-400.0,0.00024657,3]
[387266463,1758669046341,-400.0,0.00024657,3]
[387266465,1758669046351,-2026.16,0.00024657,3]
[387266467,1758669046360,-617.4,0.00024657,3]
[387266469,1758669046369,-1598.06,0.00024657,3]
[387266471,1758669046379,-709.29,0.00024657,3]
[387266473,1758669046388,-494.80006354,0.00024657,3]
[387266475,1758669046397,-400.0,0.00024657,3]
[387266477,1758669046407,-737.12,0.00024657,3]
[387266479,1758669046416,-564.6,0.00024657,3]
[387266481,1758669046426,-1109.9,0.00024657,3]
[387266483,1758669046436,-444.58,0.00024657,3]
[387266485,1758669046445,-400.0,0.00024657,3]
[387266487,1758669046454,-400.0,0.00024657,3]
[387266489,1758669046464,-517.91,0.00024657,3]
[387266491,1758669046473,-509.52,0.00024657,3]
[387266493,1758669046482,-699.61,0.00024657,3]
[387266495,1758669046492,-5486.13,0.00024657,3]
[387266497,1758669046501,-355.64678245,0.00024657,3]
[387266499,1758669046510,-400.0,0.00024657,3]
[387266501,1758669046519,-400.0,0.00024657,3]
[387266503,1758669046529,-400.0,0.00024657,3]
[387266505,1758669046538,-598.55,0.00024657,3]
[387266508,1758669046548,-400.0,0.00024657,3]
[387266510,1758669046557,-915.9,0.00024657,3]
[387266512,1758669046566,-400.0,0.00024657,3]
[387266514,1758669046575,-746.34,0.00024657,3]
[387266516,1758669046585,-400.0,0.00024657,3]
[387266518,1758669046595,-400.0,0.00024657,3]
[387266520,1758669046604,-895.14,0.00024657,3]
[387266522,1758669046613,-400.0,0.00024657,3]
[387266524,1758669046623,-400.0,0.00024657,3]
[387266526,1758669046632,-1184.9,0.00024657,3]
[387266528,1758669046642,-400.0,0.00024657,3]
[387266530,1758669046651,-44.93396071,0.00024657,3]
[387266558,1758669046913,-398.44603929,0.00024657,3]
[387266560,1758669046922,-576.91,0.00024657,3]
[387266562,1758669046933,-745.66,0.00024657,3]
[387266564,1758669046944,-400.0,0.00024657,3]
[387266566,1758669046953,-644.1,0.00024657,3]
[387266568,1758669046963,-400.0,0.00024657,3]
[387266570,1758669046972,-500.0,0.00024657,3]
[387266572,1758669046983,-500.0,0.00024657,3]
[387266574,1758669046992,-500.0,0.00024657,3]
[387266576,1758669047002,-500.0,0.00024657,3]
[387266578,1758669047013,-500.0,0.00024657,3]
[387266580,1758669047023,-500.0,0.00024657,3]
[387266582,1758669047032,-500.0,0.00024657,3]
[387266584,1758669047041,-500.0,0.00024657,3]
[387266586,1758669047050,-500.0,0.00024657,3]
[387266588,1758669047060,-500.0,0.00024657,3]
[387266590,1758669047070,-400.0,0.00024657,3]
[387266592,1758669047079,-500.0,0.00024657,3]
[387266594,1758669047090,-500.0,0.00024657,3]
[387266596,1758669047100,-500.0,0.00024657,3]
[387266598,1758669047110,-400.0,0.00024657,3]
[387266600,1758669047119,-500.0,0.00024657,3]
[387266602,1758669047128,-237.69596071,0.00024657,3]
[387266674,1758669047870,-262.30403929,0.00024657,3]
[387266677,1758669047880,-213.88596061,0.00024657,3]
[387266679,1758669047893,-293.15272612,0.00024657,3]
[387266681,1758669047903,-445.38,0.00024657,3]
[387266683,1758669047914,-1583.51,0.00024657,3]
[387266685,1758669047924,-400.0,0.00024657,3]
[387266687,1758669047937,-400.0,0.00024657,3]
[387266689,1758669047948,-400.0,0.00024657,3]
[387266691,1758669047958,-400.0,0.00024657,3]
[387266694,1758669047968,-400.0,0.00024657,3]
[387266696,1758669047978,-636.76,0.00024657,3]
[387266698,1758669047988,-1508.49,0.00024657,3]
[387266700,1758669047998,-686.76,0.00024657,3]
[387266702,1758669048008,-490.23,0.00024657,3]
[387266704,1758669048018,-400.0,0.00024657,3]
[387266706,1758669048028,-400.0,0.00024657,3]
[387266708,1758669048038,-400.0,0.00024657,3]
[387266710,1758669048048,-400.0,0.00024657,3]
[387266712,1758669048058,-400.0,0.00024657,3]
[387266714,1758669048068,-400.0,0.00024657,3]
[387266716,1758669048078,-1364.66,0.00024657,3]
[387266719,1758669048088,-400.0,0.00024657,3]
[387266721,1758669048098,-846.98,0.00024657,3]
[387266723,1758669048108,-400.0,0.00024657,3]
[387266725,1758669048118,-727.39,0.00024657,3]
[387266727,1758669048127,-542.77,0.00024657,3]
[387266729,1758669048137,-400.0,0.00024657,3]
[387266731,1758669048147,-400.0,0.00024657,3]
[387266733,1758669048157,-1018.15,0.00024657,3]
[387266735,1758669048168,-500.0,0.00024657,3]
[387266737,1758669048177,-1281.44,0.00024657,3]
[387266739,1758669048187,-500.0,0.00024657,3]
[387266741,1758669048197,-500.0,0.00024657,3]
[387266743,1758669048207,-500.0,0.00024657,3]
[387266746,1758669048217,-400.0,0.00024657,3]
[387266748,1758669048227,-400.0,0.00024657,3]
[387266750,1758669048237,-500.0,0.00024657,3]
[387266752,1758669048246,-500.0,0.00024657,3]
[387266754,1758669048257,-500.0,0.00024657,3]
[387266756,1758669048266,-400.0,0.00024657,3]
[387266758,1758669048277,-537.38,0.00024657,3]
[387266760,1758669048288,-165.120494,0.00024657,3]
[387266762,1758669048298,-400.0,0.00024657,3]
[387266764,1758669048308,-400.0,0.00024657,3]
[387266766,1758669048318,-1025.08,0.00024657,3]
[387266768,1758669048328,-172.496526,0.00024657,3]
[387266770,1758669048338,-741.74,0.00024657,3]
[387266772,1758669048348,-932.17,0.00024657,3]
[387266775,1758669048358,-400.0,0.00024657,3]
[387266777,1758669048368,-165.120494,0.00024657,3]
[387266779,1758669048378,-180.55179,0.00024657,3]
[387266781,1758669048388,-400.0,0.00024657,3]
[387266783,1758669048398,-172.496526,0.00024657,3]
[387266785,1758669048407,-400.0,0.00024657,3]
[387266787,1758669048419,-540.87,0.00024657,3]
[387266789,1758669048429,-514.95,0.00024657,3]
[387266791,1758669048439,-400.0,0.00024657,3]
[387266793,1758669048448,-2320.01,0.00024657,3]
[387266795,1758669048458,-400.0,0.00024657,3]
[387266797,1758669048468,-179.653427,0.00024657,3]
[387266799,1758669048478,-1049.04,0.00024657,3]
[387266801,1758669048488,-400.0,0.00024657,3]
[387266804,1758669048498,-157.710197,0.00024657,3]
[387266806,1758669048508,-669.82,0.00024657,3]
[387266808,1758669048519,-400.0,0.00024657,3]
[387266810,1758669048528,-1026.59,0.00024657,3]
[387266812,1758669048538,-400.0,0.00024657,3]
[387266814,1758669048548,-154.476536,0.00024657,3]
[387266816,1758669048558,-400.0,0.00024657,3]
[387266818,1758669048568,-400.0,0.00024657,3]
[387266820,1758669048577,-1385.63,0.00024657,3]
[387266822,1758669048587,-434.27,0.00024657,3]
[387266824,1758669048597,-400.0,0.00024657,3]
[387266826,1758669048607,-400.0,0.00024657,3]
[387266829,1758669048617,-400.0,0.00024657,3]
[387266831,1758669048628,-400.0,0.00024657,3]
[387266833,1758669048638,-13778.86,0.00024657,3]
[387266835,1758669048648,-400.0,0.00024657,3]
[387266837,1758669048658,-2040.41,0.00024657,3]
[387266839,1758669048668,-1673.03,0.00024657,3]
[387266841,1758669048678,-1192.3,0.00024657,3]
[387266843,1758669048688,-400.0,0.00024657,3]
[387266845,1758669048698,-409.87632272,0.00024657,3]
[387266847,1758669048708,-400.0,0.00024657,3]
[387266849,1758669048718,-400.0,0.00024657,3]
[387266851,1758669048727,-852.85,0.00024657,3]
[387266853,1758669048737,-157.710197,0.00024657,3]
[387266855,1758669048748,-501.44,0.00024657,3]
[387266857,1758669048757,-425.10232346,0.00024657,3]
[387266859,1758669048767,-400.0,0.00024657,3]
[387266861,1758669048777,-848.27,0.00024657,3]
[387266863,1758669048787,-668.82,0.00024657,3]
[387266866,1758669048797,-1147.79,0.00024657,3]
[387266868,1758669048807,-618.2,0.00024657,3]
[387266870,1758669048817,-400.0,0.00024657,3]
[387266872,1758669048827,-400.0,0.00024657,3]
[387266874,1758669048837,-502.22,0.00024657,3]
[387266876,1758669048847,-500.0,0.00024657,2]
[387266878,1758669048857,-400.0,0.00024657,3]
[387266880,1758669048867,-150.928891,0.00024657,3]
[387266882,1758669048878,-400.0,0.00024657,3]
[387266884,1758669048887,-500.0,0.00024657,2]